[Event "Early-Titled-Tuesday-Blitz-October-17-2023"]
[Site "Chess.com"]
[Date "2023.10.17"]
[Round "3"]
[White "ProfessorChess101"]
[Black "AsaHoffmann"]
[Result "1-0"]
[WhiteElo "2556"]
[BlackElo "2353"]
[TimeControl "180+1"]
[EndTime "8:29:51 PDT"]
[Termination "ProfessorChess101 won by resignation"]

1. Nf3 {[%clk 0:02:54.1]} 1... d6 {[%clk 0:02:58.6]} 2. d4 {[%clk 0:02:53]} 2...
Bg4 {[%clk 0:02:57.7]} 3. e4 {[%clk 0:02:52.5]} 3... Nf6 {[%clk 0:02:57.2]} 4.
Nc3 {[%clk 0:02:51.8]} 4... c6 {[%clk 0:02:57.2]} 5. Be2 {[%clk 0:02:50]} 5...
e6 {[%clk 0:02:57.2]} 6. O-O {[%clk 0:02:48.3]} 6... d5 {[%clk 0:02:57]} 7. e5
{[%clk 0:02:47]} 7... Nfd7 {[%clk 0:02:56.8]} 8. h3 {[%clk 0:02:42.7]} 8... Bh5
{[%clk 0:02:56.5]} 9. Be3 {[%clk 0:02:40.5]} 9... c5 {[%clk 0:02:55.8]} 10. dxc5
{[%clk 0:02:26.6]} 10... Nc6 {[%clk 0:02:55.1]} 11. Nd4 {[%clk 0:02:25]} 11...
Bxe2 {[%clk 0:02:52.5]} 12. Qxe2 {[%clk 0:02:25.9]} 12... Ndxe5 {[%clk
0:02:48.2]} 13. Rad1 {[%clk 0:02:09.6]} 13... Nxd4 {[%clk 0:02:43.5]} 14. Bxd4
{[%clk 0:02:04.9]} 14... Nc6 {[%clk 0:02:43.4]} 15. Nxd5 {[%clk 0:01:48.7]}
15... Qxd5 {[%clk 0:02:39.1]} 16. Bxg7 {[%clk 0:01:46.3]} 16... Qxd1 {[%clk
0:02:31.5]} 17. Rxd1 {[%clk 0:01:41.7]} 17... Bxg7 {[%clk 0:02:31.4]} 18. c3
{[%clk 0:01:39.3]} 18... O-O {[%clk 0:02:28.2]} 19. Rd7 {[%clk 0:01:33.3]} 19...
Rab8 {[%clk 0:02:24]} 20. Qb5 {[%clk 0:01:25.2]} 20... a6 {[%clk 0:02:10.6]} 21.
Qb6 {[%clk 0:01:11.4]} 21... Rfd8 {[%clk 0:01:55.6]} 22. Rxd8+ {[%clk
0:01:02.1]} 22... Nxd8 {[%clk 0:01:37.7]} 23. a4 {[%clk 0:00:54.3]} 23... Bf6
{[%clk 0:01:35.4]} 24. b4 {[%clk 0:00:50.3]} 24... Rc8 {[%clk 0:01:34.4]} 25. c4
{[%clk 0:00:41.7]} 25... Kf8 {[%clk 0:01:30.2]} 26. b5 {[%clk 0:00:40.6]} 26...
Be7 {[%clk 0:01:27.4]} 27. c6 {[%clk 0:00:36.2]} 27... bxc6 {[%clk 0:01:21.3]}
28. bxa6 {[%clk 0:00:32.5]} 28... Ra8 {[%clk 0:01:14.5]} 29. a7 {[%clk
0:00:32.5]} 29... Bd6 {[%clk 0:01:12.9]} 30. a5 {[%clk 0:00:30.9]} 30... Ke7
{[%clk 0:01:12.7]} 31. c5 {[%clk 0:00:25.8]} 31... Be5 {[%clk 0:01:10.8]} 32.
Kf1 {[%clk 0:00:25.4]} 32... Kd7 {[%clk 0:01:10.7]} 33. Ke2 {[%clk 0:00:25.8]}
33... Bc7 {[%clk 0:01:10.5]} 34. Qa6 {[%clk 0:00:25]} 34... f5 {[%clk
0:01:06.8]} 35. g4 {[%clk 0:00:24.4]} 35... fxg4 {[%clk 0:01:05.9]} 36. hxg4
{[%clk 0:00:25.3]} 36... e5 {[%clk 0:01:06.2]} 37. Kf3 {[%clk 0:00:22.5]} 37...
Ke6 {[%clk 0:00:52.4]} 38. Kg2 {[%clk 0:00:21]} 38... Kd5 {[%clk 0:00:50.7]} 39.
g5 {[%clk 0:00:13.6]} 39... Kxc5 {[%clk 0:00:50]} 40. Kf3 {[%clk 0:00:14]} 40...
Kd5 {[%clk 0:00:49.7]} 41. Ke3 {[%clk 0:00:12.5]} 41... Ne6 {[%clk 0:00:45.2]}
42. Qb7 {[%clk 0:00:11.7]} 42... Bxa5 {[%clk 0:00:31.6]} 43. Qxa8 {[%clk
0:00:10.4]} 43... Bb6+ {[%clk 0:00:31.5]} 44. Kf3 {[%clk 0:00:09.8]} 44... e4+
{[%clk 0:00:31.2]} 45. Kg4 {[%clk 0:00:09.4]} 45... Nc7 {[%clk 0:00:29.2]} 46.
Qd8+ {[%clk 0:00:08.1]} 46... Kc4 {[%clk 0:00:28]} 47. Qxc7 {[%clk 0:00:05.8]}
47... Bxc7 {[%clk 0:00:25.4]} 48. a8=Q {[%clk 0:00:06.6]} 48... Kd5 {[%clk
0:00:24.8]} 49. Kf5 {[%clk 0:00:07.1]} 49... Bd6 {[%clk 0:00:23.3]} 50. Qa5+
{[%clk 0:00:06.4]} 50... c5 {[%clk 0:00:23.2]} 51. Qd2+ {[%clk 0:00:07.1]} 51...
Kc6 {[%clk 0:00:22.6]} 52. Kxe4 {[%clk 0:00:07.8]} 52... c4 {[%clk 0:00:22.7]}
53. Qd5+ {[%clk 0:00:07.9]} 53... Kc7 {[%clk 0:00:22.3]} 54. Qxc4+ {[%clk
0:00:08.6]} 1-0

[Event "Early-Titled-Tuesday-Blitz-October-17-2023"]
[Site "Chess.com"]
[Date "2023.10.17"]
[Round "3"]
[White "stollenmonster"]
[Black "DrCeltic"]
[Result "1-0"]
[WhiteElo "2810"]
[BlackElo "2566"]
[TimeControl "180+1"]
[EndTime "8:29:53 PDT"]
[Termination "stollenmonster won by resignation"]

1. e4 {[%clk 0:03:00.9]} 1... c5 {[%clk 0:02:59.2]} 2. Nf3 {[%clk 0:03:00.9]}
2... e6 {[%clk 0:02:59.9]} 3. Be2 {[%clk 0:03:00.5]} 3... d6 {[%clk 0:02:58.8]}
4. c4 {[%clk 0:02:57.7]} 4... Nf6 {[%clk 0:02:58.5]} 5. Nc3 {[%clk 0:02:57.3]}
5... e5 {[%clk 0:02:57.9]} 6. d3 {[%clk 0:02:57.6]} 6... h6 {[%clk 0:02:57.8]}
7. O-O {[%clk 0:02:57]} 7... Be7 {[%clk 0:02:58]} 8. Nd5 {[%clk 0:02:57.3]} 8...
Nxd5 {[%clk 0:02:57.7]} 9. cxd5 {[%clk 0:02:57.8]} 9... O-O {[%clk 0:02:54.7]}
10. Ne1 {[%clk 0:02:58.2]} 10... b5 {[%clk 0:02:46.6]} 11. f4 {[%clk 0:02:58.4]}
11... Bf6 {[%clk 0:02:46.2]} 12. Rb1 {[%clk 0:02:55.9]} 12... Nd7 {[%clk
0:02:42.5]} 13. Nf3 {[%clk 0:02:47.3]} 13... exf4 {[%clk 0:02:40.4]} 14. Bxf4
{[%clk 0:02:48.2]} 14... Qe7 {[%clk 0:02:40.4]} 15. Qe1 {[%clk 0:02:46.7]} 15...
Re8 {[%clk 0:02:38.2]} 16. Qg3 {[%clk 0:02:45.9]} 16... Ne5 {[%clk 0:02:11.9]}
17. Nxe5 {[%clk 0:02:44.7]} 17... Bxe5 {[%clk 0:02:03.3]} 18. Bh5 {[%clk
0:02:45.3]} 18... Bxf4 {[%clk 0:01:55.1]} 19. Rxf4 {[%clk 0:02:43.3]} 19... Rf8
{[%clk 0:01:54.7]} 20. Rbf1 {[%clk 0:02:41.6]} 20... f6 {[%clk 0:01:52.7]} 21.
Bg6 {[%clk 0:02:32.6]} 21... Bd7 {[%clk 0:01:51.4]} 22. Bf5 {[%clk 0:02:19.3]}
22... Rad8 {[%clk 0:01:42]} 23. b3 {[%clk 0:02:16.5]} 23... b4 {[%clk
0:01:35.9]} 24. Rg4 {[%clk 0:02:13.1]} 24... Rf7 {[%clk 0:01:26.2]} 25. Rg6
{[%clk 0:02:06.6]} 25... Qe5 {[%clk 0:01:22]} 26. Qxe5 {[%clk 0:01:20]} 26...
dxe5 {[%clk 0:01:05.8]} 27. Bxd7 {[%clk 0:01:19.2]} 27... Rdxd7 {[%clk
0:01:04.9]} 28. Rc1 {[%clk 0:01:19.5]} 28... Rc7 {[%clk 0:01:00.7]} 29. Rg3
{[%clk 0:01:19.3]} 29... a5 {[%clk 0:00:53.8]} 30. Re3 {[%clk 0:01:18.6]} 30...
Rf8 {[%clk 0:00:52.1]} 31. Re2 {[%clk 0:01:17.4]} 31... Kf7 {[%clk 0:00:51.4]}
32. Rec2 {[%clk 0:01:17.4]} 32... Rfc8 {[%clk 0:00:50.7]} 33. a3 {[%clk
0:01:04.9]} 33... bxa3 {[%clk 0:00:45.6]} 34. Ra2 {[%clk 0:01:03.5]} 34... Rb8
{[%clk 0:00:45.2]} 35. Rxa3 {[%clk 0:01:03.5]} 35... Rb5 {[%clk 0:00:45.4]} 36.
Kf2 {[%clk 0:01:01.5]} 36... Ke7 {[%clk 0:00:42.6]} 37. Rca1 {[%clk 0:01:01.3]}
37... Ra7 {[%clk 0:00:42.5]} 38. Ke3 {[%clk 0:00:58.4]} 38... Kd6 {[%clk
0:00:42.7]} 39. g4 {[%clk 0:00:58.6]} 39... Rab7 {[%clk 0:00:36.2]} 40. Rxa5
{[%clk 0:00:56.5]} 40... Rxa5 {[%clk 0:00:33.8]} 41. Rxa5 {[%clk 0:00:57]} 41...
Rxb3 {[%clk 0:00:34.7]} 42. Ra6+ {[%clk 0:00:57.5]} 42... Ke7 {[%clk 0:00:32.6]}
43. Ra7+ {[%clk 0:00:35.8]} 43... Kd6 {[%clk 0:00:32.5]} 44. Kd2 {[%clk
0:00:30.3]} 44... g6 {[%clk 0:00:25.2]} 45. Rf7 {[%clk 0:00:27.5]} 45... f5
{[%clk 0:00:22.4]} 46. gxf5 {[%clk 0:00:26.8]} 46... gxf5 {[%clk 0:00:21.5]} 47.
Rf6+ {[%clk 0:00:27.1]} 47... Ke7 {[%clk 0:00:20.5]} 48. Rxf5 {[%clk 0:00:27.8]}
48... Rb2+ {[%clk 0:00:20.4]} 49. Kc3 {[%clk 0:00:27.7]} 49... Rxh2 {[%clk
0:00:20.2]} 50. Rxe5+ {[%clk 0:00:28.4]} 50... Kd7 {[%clk 0:00:20.8]} 51. Re6
{[%clk 0:00:28.9]} 51... h5 {[%clk 0:00:20.9]} 52. Rh6 {[%clk 0:00:27.7]} 52...
h4 {[%clk 0:00:20.9]} 53. Kc4 {[%clk 0:00:27.1]} 53... Rc2+ {[%clk 0:00:20.9]}
54. Kb5 {[%clk 0:00:27.5]} 54... Rd2 {[%clk 0:00:20.9]} 55. Kxc5 {[%clk
0:00:26.2]} 55... Rxd3 {[%clk 0:00:21.3]} 56. Rh7+ {[%clk 0:00:24.1]} 56... Ke8
{[%clk 0:00:21.6]} 1-0

[Event "Early-Titled-Tuesday-Blitz-October-17-2023"]
[Site "Chess.com"]
[Date "2023.10.17"]
[Round "3"]
[White "HajiyevKanan"]
[Black "ChesscularGodofchess"]
[Result "1-0"]
[WhiteElo "2533"]
[BlackElo "2195"]
[TimeControl "180+1"]
[EndTime "8:29:56 PDT"]
[Termination "HajiyevKanan won by checkmate"]

1. d4 {[%clk 0:03:00.9]} 1... d5 {[%clk 0:02:56.9]} 2. Nf3 {[%clk 0:03:01.8]}
2... Nf6 {[%clk 0:02:56.8]} 3. c4 {[%clk 0:03:02.3]} 3... c6 {[%clk 0:02:57.3]}
4. cxd5 {[%clk 0:03:03]} 4... cxd5 {[%clk 0:02:58.2]} 5. Nc3 {[%clk 0:03:03.7]}
5... Nc6 {[%clk 0:02:58.3]} 6. Bg5 {[%clk 0:03:04.4]} 6... Bf5 {[%clk
0:02:57.2]} 7. Bxf6 {[%clk 0:03:04.1]} 7... gxf6 {[%clk 0:02:54.9]} 8. Qb3
{[%clk 0:03:05]} 8... e6 {[%clk 0:02:29.3]} 9. Qxb7 {[%clk 0:03:04.6]} 9... Nb4
{[%clk 0:02:13.3]} 10. e4 {[%clk 0:03:03.1]} 10... Bd6 {[%clk 0:01:38.3]} 11.
Bb5+ {[%clk 0:03:00.7]} 11... Kf8 {[%clk 0:01:38.3]} 12. exf5 {[%clk 0:03:01.3]}
12... Nc2+ {[%clk 0:01:38.2]} 13. Kd2 {[%clk 0:03:01.8]} 13... Nxa1 {[%clk
0:01:37.3]} 14. fxe6 {[%clk 0:03:00.3]} 14... fxe6 {[%clk 0:01:33.4]} 15. Rxa1
{[%clk 0:02:57.3]} 15... Rb8 {[%clk 0:01:16.4]} 16. Qxa7 {[%clk 0:02:55.6]}
16... Bb4 {[%clk 0:01:04.1]} 17. a4 {[%clk 0:02:50.4]} 17... Qd6 {[%clk
0:00:55.1]} 18. g3 {[%clk 0:02:42.6]} 18... e5 {[%clk 0:00:48]} 19. Qd7 {[%clk
0:02:14.5]} 19... Bxc3+ {[%clk 0:00:44]} 20. Kxc3 {[%clk 0:01:39.1]} 20... Qxd7
{[%clk 0:00:27.2]} 21. Bxd7 {[%clk 0:01:38.9]} 21... e4 {[%clk 0:00:27.6]} 22.
Nh4 {[%clk 0:01:32.1]} 22... Ke7 {[%clk 0:00:27.3]} 23. Bb5 {[%clk 0:01:28.8]}
23... Rhc8+ {[%clk 0:00:27]} 24. Kd2 {[%clk 0:01:29.2]} 24... Rc7 {[%clk
0:00:21.2]} 25. Rc1 {[%clk 0:01:25.2]} 25... Rxc1 {[%clk 0:00:19.9]} 26. Kxc1
{[%clk 0:01:26.1]} 26... Rc8+ {[%clk 0:00:20.5]} 27. Kd2 {[%clk 0:01:26.6]}
27... Ke6 {[%clk 0:00:20.6]} 28. h3 {[%clk 0:01:19]} 28... Rb8 {[%clk
0:00:20.8]} 29. Ng2 {[%clk 0:01:10.7]} 29... Kd6 {[%clk 0:00:20.3]} 30. Nf4
{[%clk 0:01:06.3]} 30... Rb6 {[%clk 0:00:18.8]} 31. Nh5 {[%clk 0:01:00]} 31...
Ke6 {[%clk 0:00:17.8]} 32. Ng7+ {[%clk 0:00:59.9]} 32... Kd6 {[%clk 0:00:16]}
33. Nf5+ {[%clk 0:00:59.8]} 33... Ke6 {[%clk 0:00:16.2]} 34. g4 {[%clk
0:01:00.7]} 34... Rb8 {[%clk 0:00:15.4]} 35. b4 {[%clk 0:00:58.6]} 35... Rb7
{[%clk 0:00:15.1]} 36. Ne3 {[%clk 0:00:55.1]} 36... Rb8 {[%clk 0:00:14.8]} 37.
Kc3 {[%clk 0:00:49.4]} 37... Rc8+ {[%clk 0:00:14.9]} 38. Kb3 {[%clk 0:00:50]}
38... Rb8 {[%clk 0:00:15.5]} 39. Bc6 {[%clk 0:00:49.3]} 39... Kd6 {[%clk
0:00:14.4]} 40. Bxd5 {[%clk 0:00:48.7]} 40... Rh8 {[%clk 0:00:14]} 41. Bxe4
{[%clk 0:00:45.7]} 41... h5 {[%clk 0:00:14.9]} 42. a5 {[%clk 0:00:42.3]} 42...
hxg4 {[%clk 0:00:15]} 43. hxg4 {[%clk 0:00:42.3]} 43... Rh2 {[%clk 0:00:14.9]}
44. a6 {[%clk 0:00:39.3]} 44... Rxf2 {[%clk 0:00:15.5]} 45. a7 {[%clk
0:00:39.9]} 45... Re2 {[%clk 0:00:16.1]} 46. Nc4+ {[%clk 0:00:37.1]} 46... Kc7
{[%clk 0:00:14.1]} 47. a8=Q {[%clk 0:00:37.2]} 47... f5 {[%clk 0:00:13.5]} 48.
Qc6+ {[%clk 0:00:35]} 48... Kd8 {[%clk 0:00:13.6]} 49. Qd6+ {[%clk 0:00:32.6]}
49... Ke8 {[%clk 0:00:13.4]} 50. Qe6+ {[%clk 0:00:20.7]} 50... Kf8 {[%clk
0:00:12.1]} 51. Qf6+ {[%clk 0:00:20.8]} 51... Kg8 {[%clk 0:00:11.6]} 52. Bd5+
{[%clk 0:00:17.5]} 52... Kh7 {[%clk 0:00:09.2]} 53. Bf7 {[%clk 0:00:14.6]} 53...
Re3+ {[%clk 0:00:04.4]} 54. Nxe3 {[%clk 0:00:14.4]} 54... fxg4 {[%clk
0:00:04.5]} 55. Qg6+ {[%clk 0:00:14.9]} 55... Kh8 {[%clk 0:00:04.6]} 56. Qg8#
{[%clk 0:00:15.8]} 1-0

[Event "Early-Titled-Tuesday-Blitz-October-17-2023"]
[Site "Chess.com"]
[Date "2023.10.17"]
[Round "3"]
[White "The_Machine04"]
[Black "ploxoi"]
[Result "0-1"]
[WhiteElo "2681"]
[BlackElo "2482"]
[TimeControl "180+1"]
[EndTime "8:29:57 PDT"]
[Termination "ploxoi won by checkmate"]

1. d4 {[%clk 0:03:00.9]} 1... d5 {[%clk 0:03:00]} 2. Nf3 {[%clk 0:03:01.2]} 2...
e6 {[%clk 0:03:00.4]} 3. e3 {[%clk 0:03:01.1]} 3... Nf6 {[%clk 0:03:00.3]} 4.
Nbd2 {[%clk 0:03:01.7]} 4... Nbd7 {[%clk 0:02:59.8]} 5. Ne5 {[%clk 0:03:01.9]}
5... c5 {[%clk 0:02:58.1]} 6. c3 {[%clk 0:03:01.7]} 6... Bd6 {[%clk 0:02:58.1]}
7. f4 {[%clk 0:03:01.8]} 7... Qc7 {[%clk 0:02:57.3]} 8. Bd3 {[%clk 0:03:00.6]}
8... a6 {[%clk 0:02:49.2]} 9. Qf3 {[%clk 0:02:59.9]} 9... b5 {[%clk 0:02:43.3]}
10. O-O {[%clk 0:02:59.1]} 10... Bb7 {[%clk 0:02:43.5]} 11. Qh3 {[%clk
0:02:58.7]} 11... b4 {[%clk 0:02:36.4]} 12. g4 {[%clk 0:02:51.9]} 12... Ne4
{[%clk 0:02:30.7]} 13. Qg2 {[%clk 0:02:43.3]} 13... Nxd2 {[%clk 0:02:04.9]} 14.
Bxd2 {[%clk 0:02:44.2]} 14... bxc3 {[%clk 0:02:05.3]} 15. bxc3 {[%clk
0:02:43.2]} 15... Rc8 {[%clk 0:02:03]} 16. Rab1 {[%clk 0:02:41.4]} 16... f6
{[%clk 0:01:56.7]} 17. Nxd7 {[%clk 0:02:40.1]} 17... Qxd7 {[%clk 0:01:57.6]} 18.
g5 {[%clk 0:02:40.5]} 18... f5 {[%clk 0:01:55.1]} 19. h4 {[%clk 0:02:34.5]}
19... Ke7 {[%clk 0:01:48.8]} 20. h5 {[%clk 0:02:34.3]} 20... Rb8 {[%clk
0:01:44.8]} 21. g6 {[%clk 0:02:14.8]} 21... h6 {[%clk 0:01:44.7]} 22. Be1 {[%clk
0:02:14.7]} 22... Rhc8 {[%clk 0:01:42]} 23. Bh4+ {[%clk 0:02:13.1]} 23... Kf8
{[%clk 0:01:41.8]} 24. Qe2 {[%clk 0:02:09.9]} 24... Qa4 {[%clk 0:01:39.5]} 25.
Rb2 {[%clk 0:02:04.5]} 25... Bc6 {[%clk 0:01:06.3]} 26. Rfb1 {[%clk 0:02:01.5]}
26... a5 {[%clk 0:01:03.8]} 27. Rxb8 {[%clk 0:01:40.2]} 27... Rxb8 {[%clk
0:01:03.2]} 28. Rxb8+ {[%clk 0:01:41.1]} 28... Bxb8 {[%clk 0:01:03.7]} 29. dxc5
{[%clk 0:01:42]} 29... Qa3 {[%clk 0:00:43.7]} 30. c4 {[%clk 0:01:32.4]} 30...
Qxc5 {[%clk 0:00:34.8]} 31. Bf2 {[%clk 0:01:13.3]} 31... Ba7 {[%clk 0:00:30.7]}
32. cxd5 {[%clk 0:01:03.3]} 32... Qxd5 {[%clk 0:00:30.6]} 33. e4 {[%clk
0:00:47]} 33... Bxf2+ {[%clk 0:00:27.8]} 34. Kxf2 {[%clk 0:00:38.3]} 34... fxe4
{[%clk 0:00:23]} 35. Bc4 {[%clk 0:00:37.8]} 35... Qd4+ {[%clk 0:00:23.5]} 36.
Kg3 {[%clk 0:00:36.1]} 36... Qc3+ {[%clk 0:00:21.7]} 37. Kh4 {[%clk 0:00:35]}
37... e3 {[%clk 0:00:17]} 38. Bxe6 {[%clk 0:00:29]} 38... Qf6+ {[%clk
0:00:16.3]} 39. Kg3 {[%clk 0:00:26.9]} 39... Qxe6 {[%clk 0:00:17.2]} 40. a3
{[%clk 0:00:25.6]} 40... Qe4 {[%clk 0:00:14.6]} 41. Qb2 {[%clk 0:00:16.2]} 41...
Qf3+ {[%clk 0:00:14.4]} 42. Kh4 {[%clk 0:00:14.3]} 42... Qxf4+ {[%clk
0:00:14.6]} 43. Kh3 {[%clk 0:00:14.5]} 43... Bd7+ {[%clk 0:00:11.7]} 44. Kg2
{[%clk 0:00:14.4]} 44... Qf2+ {[%clk 0:00:12]} 45. Qxf2+ {[%clk 0:00:14.5]}
45... exf2 {[%clk 0:00:12.9]} 46. Kxf2 {[%clk 0:00:15.4]} 46... Bg4 {[%clk
0:00:13.8]} 47. Ke3 {[%clk 0:00:16.3]} 47... Bxh5 {[%clk 0:00:14.7]} 48. Kd4
{[%clk 0:00:17.2]} 48... Bxg6 {[%clk 0:00:15.6]} 49. Kc5 {[%clk 0:00:18.1]}
49... Be8 {[%clk 0:00:15.8]} 50. Kb6 {[%clk 0:00:18.4]} 50... a4 {[%clk
0:00:16.7]} 51. Kc5 {[%clk 0:00:19.3]} 51... Ke7 {[%clk 0:00:17.3]} 52. Kd4
{[%clk 0:00:20.2]} 52... Kf6 {[%clk 0:00:18.2]} 53. Ke3 {[%clk 0:00:21.1]} 53...
h5 {[%clk 0:00:18.6]} 54. Kf4 {[%clk 0:00:22]} 54... g5+ {[%clk 0:00:19.5]} 55.
Kg3 {[%clk 0:00:22.9]} 55... h4+ {[%clk 0:00:20.1]} 56. Kh3 {[%clk 0:00:23.8]}
56... Bd7+ {[%clk 0:00:20.6]} 57. Kg2 {[%clk 0:00:24.5]} 57... Kf5 {[%clk
0:00:21.5]} 58. Kh2 {[%clk 0:00:25.4]} 58... Kf4 {[%clk 0:00:22.4]} 59. Kg2
{[%clk 0:00:25.1]} 59... g4 {[%clk 0:00:23.3]} 60. Kg1 {[%clk 0:00:25.7]} 60...
h3 {[%clk 0:00:24.2]} 61. Kh2 {[%clk 0:00:26.1]} 61... Bc6 {[%clk 0:00:25.1]}
62. Kg1 {[%clk 0:00:26.2]} 62... g3 {[%clk 0:00:25.2]} 63. Kf1 {[%clk
0:00:26.9]} 63... h2 {[%clk 0:00:25.9]} 64. Ke2 {[%clk 0:00:27.5]} 64... h1=Q
{[%clk 0:00:26.5]} 65. Kd3 {[%clk 0:00:28.4]} 65... Bb5+ {[%clk 0:00:26.8]} 66.
Kc3 {[%clk 0:00:29.3]} 66... Qd5 {[%clk 0:00:26.8]} 67. Kb4 {[%clk 0:00:29.5]}
67... Qb3+ {[%clk 0:00:27.1]} 68. Ka5 {[%clk 0:00:29.9]} 68... g2 {[%clk
0:00:26.2]} 69. Kb6 {[%clk 0:00:30.5]} 69... g1=Q+ {[%clk 0:00:26.5]} 70. Ka5
{[%clk 0:00:31.4]} 70... Qa7# {[%clk 0:00:27]} 0-1

[Event "Early-Titled-Tuesday-Blitz-October-17-2023"]
[Site "Chess.com"]
[Date "2023.10.17"]
[Round "3"]
[White "Lennis93"]
[Black "Mr_ruthless"]
[Result "1-0"]
[WhiteElo "2704"]
[BlackElo "2466"]
[TimeControl "180+1"]
[EndTime "8:30:00 PDT"]
[Termination "Lennis93 won by resignation"]

1. c4 {[%clk 0:03:00.9]} 1... Nf6 {[%clk 0:02:58.5]} 2. g3 {[%clk 0:03:01.1]}
2... c5 {[%clk 0:02:53.6]} 3. Bg2 {[%clk 0:03:01.1]} 3... g6 {[%clk 0:02:53]} 4.
Nc3 {[%clk 0:03:01.1]} 4... Bg7 {[%clk 0:02:53]} 5. a3 {[%clk 0:03:01.7]} 5...
O-O {[%clk 0:02:52.4]} 6. b4 {[%clk 0:03:01.5]} 6... cxb4 {[%clk 0:02:46.2]} 7.
axb4 {[%clk 0:03:02.4]} 7... e6 {[%clk 0:02:23.4]} 8. e4 {[%clk 0:03:01.8]} 8...
d5 {[%clk 0:02:22.7]} 9. e5 {[%clk 0:02:55.6]} 9... Ne4 {[%clk 0:02:00.7]} 10.
f4 {[%clk 0:02:17]} 10... Nxc3 {[%clk 0:01:52.4]} 11. dxc3 {[%clk 0:02:17.9]}
11... dxc4 {[%clk 0:01:50.6]} 12. Qxd8 {[%clk 0:02:16.6]} 12... Rxd8 {[%clk
0:01:51.5]} 13. Nf3 {[%clk 0:02:08.2]} 13... f6 {[%clk 0:01:48.8]} 14. Be3
{[%clk 0:02:01.9]} 14... fxe5 {[%clk 0:01:39.6]} 15. Nxe5 {[%clk 0:02:00.2]}
15... Nd7 {[%clk 0:01:36.9]} 16. Bd4 {[%clk 0:01:59.8]} 16... Nxe5 {[%clk
0:01:32.5]} 17. fxe5 {[%clk 0:02:00.7]} 17... Bf8 {[%clk 0:01:03.3]} 18. b5
{[%clk 0:01:33.9]} 18... a5 {[%clk 0:00:36]} 19. Ke2 {[%clk 0:01:28.4]} 19... a4
{[%clk 0:00:36.2]} 20. Ra2 {[%clk 0:01:19.8]} 20... a3 {[%clk 0:00:36.4]} 21. h4
{[%clk 0:01:08.2]} 21... Bd7 {[%clk 0:00:20.5]} 22. b6 {[%clk 0:00:32.3]} 22...
Bc6 {[%clk 0:00:14.8]} 23. Bxc6 {[%clk 0:00:31.7]} 23... bxc6 {[%clk 0:00:15.7]}
24. h5 {[%clk 0:00:32.4]} 24... c5 {[%clk 0:00:15.3]} 25. Be3 {[%clk 0:00:32.4]}
25... Ra6 {[%clk 0:00:14.1]} 26. Rb1 {[%clk 0:00:31.8]} 26... Rb8 {[%clk
0:00:13.9]} 27. h6 {[%clk 0:00:25.8]} 27... Be7 {[%clk 0:00:13.8]} 28. b7 {[%clk
0:00:24.7]} 28... Ra7 {[%clk 0:00:12.8]} 29. Rb5 {[%clk 0:00:24.9]} 29... Kf7
{[%clk 0:00:11.9]} 30. Bxc5 {[%clk 0:00:25.1]} 30... Bxc5 {[%clk 0:00:12.4]} 31.
Rxc5 {[%clk 0:00:26]} 31... Rbxb7 {[%clk 0:00:13.2]} 32. Rxc4 {[%clk 0:00:25.2]}
32... Rb3 {[%clk 0:00:12]} 33. Kd3 {[%clk 0:00:24.1]} 33... Rd7+ {[%clk
0:00:09.6]} 34. Rd4 {[%clk 0:00:24.4]} 34... Rc7 {[%clk 0:00:06.6]} 35. Rf4+
{[%clk 0:00:24.4]} 35... Ke7 {[%clk 0:00:06.3]} 36. Rc4 {[%clk 0:00:25]} 36...
Rd7+ {[%clk 0:00:05.1]} 37. Ke4 {[%clk 0:00:23.5]} 37... Rb5 {[%clk 0:00:04.1]}
38. Rxa3 {[%clk 0:00:22.6]} 38... Rbd5 {[%clk 0:00:02.6]} 39. Ra6 {[%clk
0:00:21.8]} 39... Rd1 {[%clk 0:00:02.9]} 40. Rcc6 {[%clk 0:00:21.7]} 40... Re1+
{[%clk 0:00:03.4]} 41. Kf4 {[%clk 0:00:21.5]} 41... Rd2 {[%clk 0:00:03.4]} 42.
Rxe6+ {[%clk 0:00:21]} 42... Kd7 {[%clk 0:00:04.1]} 43. Red6+ {[%clk 0:00:20.5]}
43... Rxd6 {[%clk 0:00:04.5]} 44. Rxd6+ {[%clk 0:00:21.4]} 44... Ke7 {[%clk
0:00:05.3]} 45. Ra6 {[%clk 0:00:21.3]} 45... Rf1+ {[%clk 0:00:05.3]} 46. Kg4
{[%clk 0:00:21.6]} 46... Rf5 {[%clk 0:00:05.2]} 47. Ra7+ {[%clk 0:00:21.7]}
47... Ke6 {[%clk 0:00:05.7]} 48. Rxh7 {[%clk 0:00:22.3]} 48... Rh5 {[%clk
0:00:04.8]} 49. Rh8 {[%clk 0:00:21.7]} 49... Kxe5 {[%clk 0:00:05.2]} 50. h7
{[%clk 0:00:22.3]} 50... Kf6 {[%clk 0:00:05.8]} 51. Rf8+ {[%clk 0:00:22.4]}
51... Kg7 {[%clk 0:00:06.1]} 52. h8=Q+ {[%clk 0:00:22.5]} 52... Rxh8 {[%clk
0:00:07]} 53. Rxh8 {[%clk 0:00:22.7]} 53... Kxh8 {[%clk 0:00:07.9]} 54. Kg5
{[%clk 0:00:23.3]} 1-0